Cogmind - Beta 17.1 @@@ ROGUE MODE // 2026.09.18 @ 00:48:21 Player: Talon Java Result: Destroyed by G-67 Veteran with Plasma Rifle Performance ------------- Evolutions (6) 3000 Regions Visited (23) 4600 Robots Destroyed (95) 475 Value Destroyed (3114) 3114 Prototype IDs (33) 660 Alien Tech Used (1) 200 Bonus (4699) 4699 TOTAL SCORE: 16748 Bonus ------- High Alert Combat Kills 12 Follower Combat Kills 1296 Awakened Behemoth Slayer 1000 Met Data Miner 300 Met Imprinter 300 Met Warlord at Base 500 MAIN.C Attacked Warlord 500 Warlord Defense Kills 380 MAIN.C Attacked Proxy Base 500 Friendly Fire -89 Cogmind --------- Core Integrity 0/1150 Matter 177/300 Energy 61/100 System Corruption 10% Temperature Cool (12) Movement Core (50) Location -4/Factory Parts ------- > --- POWER (1) -------- (None) > --- PROPULSION (6) --- Gyrokinetic Inverter > --- UTILITY (10) ----- Advanced Signal Interpreter Advanced Hacking Suite > --- WEAPON (3) ------- CR-A16's Behemoth Slayer > --- INVENTORY (5) ---- Authchip [Device] Authchip [Device] Authchip [Device] Combat Drone Bay (2/2) Peak State ------------ > --- POWER ------------ Antimatter Reactor > --- PROPULSION ------- Antigrav System Antigrav System Combat Gravmag System Combat Gravmag System Combat Gravmag System Improved Antigrav System > --- UTILITY ---------- High-capacity Storage Unit Advanced Weight Redist. System Advanced Sensor Array Advanced Signal Interpreter Improved Medium Armor Plating Advanced Hacking Suite System Mapper Experimental System Shield Combat Drone Bay > --- WEAPON ----------- Vortex Rail Gauss Rifle KE Penetrator > --- INVENTORY -------- Micro Fission Core Light Antimatter Reactor Armored Huge Wheel Armored Huge Wheel Large Storage Unit Enhanced Optical Array Propulsion Shielding Combat Drone Bay Vortex Rail Heavy Phase Cannon Hardcell Cannon Hardcell Cannon Improved Plasma Cutter CR-A16's Behemoth Slayer [Rating: 127] Favorites ----------- Power Light Nuclear Core Engine Light Ion Engine Power Core Light Nuclear Core Reactor Antimatter Reactor Propulsion Light Treads Treads Light Treads Leg Aluminum Leg Wheel Armored Huge Wheel Hover Unit Combat Gravmag System Flight Unit Improved VTOL Module Utility Advanced Weight Redist. System Device Advanced Weight Redist. System Storage High-capacity Storage Unit Processor Spectral Analyzer Hackware Experimental System Shield Protection Hardened Light Armor Plating Weapon Shotgun Energy Gun Beam Rifle Energy Cannon Heavy Phase Cannon Ballistic Gun Shotgun Ballistic Cannon Mini Assault Cannon Launcher Heavy Missile Launcher Special Weapon Mining Laser Impact Weapon Powered Hammer Slashing Weapon Chainsword Piercing Weapon CR-A16's Pointy Stick Special Melee Weapon Improved Datajack Build | -11 -10 -10 -9 -9 -9 -8 -8 -7 -7 -7 -6 -6 -6 -6 -5 -5 -5 -5 -5 -4 -4 -4 -4 ------- Run | Yrd Mat Min Mat Min Exi Min Mat Fac Low Zio Pro Fac Low Dat Pro Fac Upp Upp War Pro Fac Was Fac Slots Evolved 12 | . . . 2 . . . 2 2 . . . 2 . . . 2 . . . . 2 . . Power . | . . . . . . . . . . . . . . . . . . . . . . . . Propulsion 4 | . . . 1 . . . 1 . . . . . . . . 1 . . . . 1 . . Utility 8 | . . . 1 . . . 1 2 . . . 2 . . . 1 . . . . 1 . . Weapon . | . . . . . . . . . . . . . . . . . . . . . . . . Parts Attached 154 | 1 13 3 6 4 1 . 18 16 1 10 5 7 . . 1 30 1 2 15 3 2 1 14 Power 18 | . 2 1 . 1 . . 2 . . . . . . . 1 5 . 1 2 1 . . 2 Engine 7 | . 2 1 . 1 . . 1 . . . . . . . 1 1 . . . . . . . Core 7 | . . . . . . . 1 . . . . . . . . 4 . 1 . . . . 1 Reactor 4 | . . . . . . . . . . . . . . . . . . . 2 1 . . 1 Propulsion 47 | . 5 . 2 1 . . 9 5 . . 4 1 . . . 5 . . 8 1 . . 6 Treads 16 | . 3 . 2 1 . . 8 . . . . . . . . 1 . . 1 . . . . Leg 3 | . 2 . . . . . . . . . . . . . . . . . 1 . . . . Wheel 2 | . . . . . . . . . . . . . . . . 2 . . . . . . . Hover 12 | . . . . . . . . . . . . . . . . . . . 5 1 . . 6 Flight 14 | . . . . . . . 1 5 . . 4 1 . . . 2 . . 1 . . . . Utility 60 | 1 2 1 1 1 . . 5 7 . 9 1 5 . . . 14 1 1 4 1 2 1 3 Device 19 | 1 1 . . 1 . . 2 3 . . . 1 . . . 5 1 . 2 . 1 1 . Storage 10 | . 1 1 . . . . . 1 . . . 3 . . . 2 . . 1 . . . 1 Processor 12 | . . . . . . . . 2 . 7 . 1 . . . . . 1 . . 1 . . Hackware 12 | . . . . . . . 1 1 . 1 1 . . . . 6 . . 1 . . . 1 Protection 7 | . . . 1 . . . 2 . . 1 . . . . . 1 . . . 1 . . 1 Artifact . | . . . . . . . . . . . . . . . . . . . . . . . . Weapon 29 | . 4 1 3 1 1 . 2 4 1 1 . 1 . . . 6 . . 1 . . . 3 Energy Gun 6 | . 1 . 1 . . . 1 1 . . . . . . . . . . 1 . . . 1 Energy Cannon 3 | . . . . . . . 1 . . . . 1 . . . 1 . . . . . . . Ballistic Gun 11 | . 3 1 2 . 1 . . . . . . . . . . 2 . . . . . . 2 Ballistic Cannon 1 | . . . . . . . . . . . . . . . . 1 . . . . . . . Launcher 1 | . . . . . . . . 1 . . . . . . . . . . . . . . . Special Weapon 2 | . . . . 1 . . . . . . . . . . . 1 . . . . . . . Impact Weapon 1 | . . . . . . . . 1 . . . . . . . . . . . . . . . Slashing Weapon 1 | . . . . . . . . 1 . . . . . . . . . . . . . . . Piercing Weapon 2 | . . . . . . . . . . 1 . . . . . 1 . . . . . . . Special Melee Weapon 1 | . . . . . . . . . 1 . . . . . . . . . . . . . . Unidentified Prototypes 17 | . . . . . . . 1 . . 8 . . 1 . . 2 . . 5 . . . . Parts Lost 48 | . 2 . . 1 . . 9 1 . . . 1 . . 3 2 . . 1 1 . . 27 Power 6 | . 1 . . 1 . . 1 . . . . . . . 1 . . . . . . . 2 Propulsion 17 | . . . . . . . 3 1 . . . . . . 1 1 . . . . . . 11 Utility 18 | . . . . . . . 5 . . . . . . . 1 1 . . 1 1 . . 9 Weapon 7 | . 1 . . . . . . . . . . 1 . . . . . . . . . . 5 Highest Loss Streak 20 | . 1 . . 1 . . 9 1 . . . 1 . . 3 1 . . 1 1 . . 20 To Critical Strikes . | . . . . . . . . . . . . . . . . . . . . . . . . Average Backups 14 | 6 8 11 17 20 19 19 17 13 8 7 8 9 14 14 14 12 13 14 14 15 17 14 16 Power 1 | 1 . 1 1 1 1 1 1 1 . . . . 1 1 1 . 1 1 1 1 2 2 2 Propulsion 4 | 4 3 3 7 8 8 8 7 3 1 1 1 1 4 4 4 3 4 3 2 5 5 2 3 Utility 4 | . 2 4 5 5 4 4 1 3 4 4 5 5 7 7 7 5 4 4 5 3 4 4 5 Weapon 3 | 1 1 2 4 5 6 6 6 3 2 1 1 1 1 1 1 1 3 4 4 5 5 5 4 Tool/Special . | . . . . . . . . . . . . . . . . . . . . . . . . Unused Backups 46 | 6 3 . 2 1 . . . 7 . 2 . . . . . 11 1 . 5 . . . 8 Power 5 | 1 . . . 1 . . . 1 . . . . . . . 2 . . . . . . . Propulsion 14 | 2 3 . . . . . . 2 . . . . . . . 5 . . 2 . . . . Utility 16 | 1 . . 2 . . . . 3 . 1 . . . . . 1 1 . 2 . . . 5 Weapon 8 | 2 . . . . . . . 1 . 1 . . . . . 1 . . 1 . . . 2 Tool/Special 3 | . . . . . . . . . . . . . . . . 2 . . . . . . 1 Average Slot Usage (%) 90 | . 99 100 99 99 100 100 92 97 93 94 99 94 91 87 82 78 83 83 84 87 78 91 87 Engine 4 | . 13 14 11 10 11 11 6 3 . . . . . . . 2 . . . . . . . Core 2 | . . . . . . . 1 3 7 7 7 6 6 6 5 2 5 5 3 . . . . Treads 11 | . 18 28 33 33 33 33 35 9 . . . . . . . 1 5 5 3 . . . . Wheel 3 | . . . . . . . . . . . . . . . . 4 11 11 10 10 10 1 . Hover 2 | . . . . . . . . . . . . . . . . . . . 2 5 5 27 27 Flight 7 | . . . . . . . . 20 30 30 30 26 25 25 24 15 . . . . . . . Device 11 | . 14 14 14 11 11 11 9 14 15 7 3 9 12 10 10 11 14 15 10 10 10 10 8 Storage 7 | . 14 14 11 11 11 11 9 7 7 7 7 6 6 6 6 5 5 5 5 5 5 5 9 Processor 7 | . . . . . . . . 6 15 17 21 19 19 18 18 13 11 11 11 4 3 5 5 Hackware 8 | . . . . . . . 4 10 7 7 8 13 12 12 12 12 11 11 14 16 15 15 15 Protection 3 | . . . 7 11 11 11 7 4 . . 3 2 . 1 1 . 1 . 1 10 10 6 1 Energy Gun 1 | . 9 . 7 . . . 2 4 . . . . . . . . . . 2 . . 3 . Energy Cannon 1 | . . . . . . . . . . . . . . . . 2 5 5 2 4 2 1 . Ballistic Gun 10 | . 18 28 14 21 20 22 15 4 . . . . . . . 1 11 11 10 11 10 10 10 Piercing Weapon 1 | . . . . . . . . . . 3 7 6 6 6 2 2 . . . . 2 . 3 Peak Build Rating 127 | 7 8 11 15 17 16 16 28 38 37 55 57 67 64 64 64 99 97 98 119 101 107 127 118 Average Rating 57 | 6 7 8 14 16 15 16 20 33 34 40 50 63 63 64 61 77 96 97 103 97 99 114 105 On Entrance 51 | 6 7 8 11 15 15 16 16 28 34 37 49 57 64 64 64 53 99 96 98 99 94 99 113 Avg Prop Armor Cover (%) 3 | . . . . . . . . 2 . 19 . 2 2 2 2 3 5 4 4 1 1 . 5 Naked Turns . | . . . . . . . . . . . . . . . . . . . . . . . . Heaviest Build 94 | 14 18 53 59 59 55 55 59 59 15 16 16 30 29 30 30 63 63 63 92 84 84 94 84 Greatest Support 89 | 20 40 40 60 60 60 60 80 89 18 18 24 36 31 31 31 65 65 65 71 65 65 85 85 Greatest Overweight (x) 4 | . 2 1 . . . . . 1 . 4 . . . . 1 1 1 1 2 1 1 1 2 Average Overweight (x) . | . . . . . . . . . . . . . . . . . . . . 1 1 . . Largest Inventory Capacity 20 | 8 10 20 20 20 20 20 20 20 8 8 8 15 15 15 15 20 15 15 20 20 20 20 20 Average Capacity 15 | 8 8 12 20 20 20 20 20 13 8 8 8 11 15 15 15 14 15 15 15 20 20 20 19 Most Carried 20 | 6 10 17 20 20 20 19 20 20 8 8 8 14 14 14 15 16 15 15 20 20 19 20 20 Average Carried 14 | 6 8 11 17 19 19 19 17 13 8 7 7 9 14 14 14 13 14 14 15 17 19 17 18 Final Capacity 20 | 8 10 20 20 20 20 20 20 8 8 8 8 15 15 15 15 15 15 15 20 20 20 20 5 Final Carried 20 | 6 10 17 20 20 19 19 20 8 8 8 8 14 14 14 14 15 15 15 20 19 19 17 5 Class Distribution -------------------- 18% | Scavenger-Mutant 17% | Mutant 15% | Hacker-Skirmisher 10% | Hacker-Mutant 10% | Hacker-Scout 6% | Hacker-Tank 3% | Scavenger-Scout 3% | Scavenger-Tank 3% | Scavenger-Sprinter 3% | Sprinter Dominant Class ---------------- Mutant | -10/Materials Mutant | -10/Mines Scavenger-Mutant | -9/Materials Scavenger-Mutant | -9/Mines Mutant | -9/Exiles Mutant | -8/Mines Scavenger-Mutant | -8/Materials Scavenger-Sprinter | -7/Factory Scavenger-Scout | -7/Lower Caves Sprinter | -7/Zion Scout | -6/Proximity Caves Hacker-Scout | -6/Factory Hacker-Scout | -6/Lower Caves Hacker-Scout | -6/Data Miner Hacker-Scout | -5/Proximity Caves Hacker-Mutant | -5/Factory Hacker-Skirmisher | -5/Upper Caves Hacker-Skirmisher | -5/Upper Caves Hacker-Skirmisher | -5/Warlord Hacker-Tank | -4/Proximity Caves Hacker-Mutant | -4/Factory Hacker-Skirmisher | -4/Waste Hacker-Mutant | -4/Factory Resources | -11 -10 -10 -9 -9 -9 -8 -8 -7 -7 -7 -6 -6 -6 -6 -5 -5 -5 -5 -5 -4 -4 -4 -4 ----------- Run | Yrd Mat Min Mat Min Exi Min Mat Fac Low Zio Pro Fac Low Dat Pro Fac Upp Upp War Pro Fac Was Fac Matter Collected 3803 | 219 221 . 214 165 . 100 195 241 156 94 214 75 40 . 47 543 94 76 414 147 . . 548 Remotely . | . . . . . . . . . . . . . . . . . . . . . . . . Salvage Created 4235 | 55 408 . 545 59 . 104 437 177 . . 162 203 . . . 911 95 . 72 56 . 19 932 Parts 227 | 14 30 . 44 . . 7 18 9 . . 3 6 . . . 41 . . 1 1 . . 53 Haulers Intercepted 9 | . 1 . 1 . . . 2 2 . . . 2 . . . 1 . . . . . . . Recyclers Shooed 6 | . . . 1 . . . . 3 . . . . . . . . . . . . . . 2 Parts Field Recycled . | . . . . . . . . . . . . . . . . . . . . . . . . Retrieved Matter . | . . . . . . . . . . . . . . . . . . . . . . . . Parts Self-Destructed 13 | . . . . . . . . . . . 2 . . . . . 8 2 . 1 . . . Prevented 46 | . . . . . . . . . . . 46 . . . . . . . . . . . . Parts Restored . | . . . . . . . . . . . . . . . . . . . . . . . . Kills | -11 -10 -10 -9 -9 -9 -8 -8 -7 -7 -7 -6 -6 -6 -6 -5 -5 -5 -5 -5 -4 -4 -4 -4 ------- Run | Yrd Mat Min Mat Min Exi Min Mat Fac Low Zio Pro Fac Low Dat Pro Fac Upp Upp War Pro Fac Was Fac Combat Hostiles Destroyed 69 | . 8 . 14 5 . 5 8 1 . . . . . . . 7 1 . 2 1 . . 17 Guns 52 | . 8 . 13 5 . 5 7 1 . . . . . . . . . . 2 . . . 11 Cannons 8 | . . . . . . . 1 . . . . . . . . 6 . . . 1 . . . AOE 5 | . . . . . . . . . . . . . . . . . . . . . . . 5 Classes Destroyed 17 | 1 6 . 1 1 . . 2 1 . . 1 . . . . 3 . . 1 . . . . Worker 4 | . 1 . 1 . . . . 2 . . . . . . . . . . . . . . . Builder 4 | . . . . . . . . 1 . . . . . . . 1 . . . . . . 2 Tunneler 4 | 4 . . . . . . . . . . . . . . . . . . . . . . . Hauler 9 | . 1 . 1 . . . 2 2 . . . 2 . . . 1 . . . . . . . Recycler 5 | . . . . . . . 1 . . . . . . . . 3 . . . . . . 1 Mechanic 1 | . . . . . . . . . . . 1 . . . . . . . . . . . . Operator 1 | . 1 . . . . . . . . . . . . . . . . . . . . . . Drone 3 | . . . . . . . . . . . . . . . . 1 1 . . . . 1 . Watcher 3 | . 1 . 1 . . . . 1 . . . . . . . . . . . . . . . Swarmer 22 | . 2 . 6 . . 3 3 . . . . . . . . . . . . . . . 8 Grunt 23 | . 6 . 5 . . 2 3 . . . . . . . . 3 1 . . . . . 3 Sentry 4 | . . . 3 . . . 1 . . . . . . . . . . . . . . . . Hunter 3 | . . . . . . . 1 1 . . . . . . . 1 . . . . . . . Programmer 9 | . . . . . . . . . . . . . . . . 2 . . 1 1 . . 5 Behemoth 2 | . . . . . . . . . . . . . . . . 1 . . . . . . 1 Striker 1 | . . . . . . . . . . . . . . . . . . . 1 . . . . Assembled 5 | . . . . 5 . . . . . . . . . . . . . . . . . . . Best Kill Streak 10 | 3 4 . 5 2 . 3 3 2 . . 1 1 . . . 3 1 . 1 1 . . 10 Combat Bots Only 9 | . 4 . 4 2 . 3 3 1 . . . . . . . 3 1 . 1 1 . . 9 Max Kills in Single Turn 5 | 1 1 . 2 1 . 1 1 1 . . 1 1 . . . 2 1 . 1 1 . 1 5 Gunslinging 1 | . . . 1 . . . . . . . . . . . . . . . . . . . . Exploded 4 | . . . . . . . . . . . . . . . . . . . . . . . 4 Melee . | . . . . . . . . . . . . . . . . . . . . . . . . Uniques/NPCs Destroyed . | . . . . . . . . . . . . . . . . . . . . . . . . Combat | -11 -10 -10 -9 -9 -9 -8 -8 -7 -7 -7 -6 -6 -6 -6 -5 -5 -5 -5 -5 -4 -4 -4 -4 -------- Run | Yrd Mat Min Mat Min Exi Min Mat Fac Low Zio Pro Fac Low Dat Pro Fac Upp Upp War Pro Fac Was Fac Hostile Shots Fired 718 | . 36 . 55 11 . 30 119 27 . . 29 11 . . 25 52 1 2 17 17 . . 286 Missed 215 | . 7 . 15 2 . 10 22 8 . . 17 7 . . 13 15 1 1 7 4 . . 86 Hits 503 | . 29 . 40 9 . 20 97 19 . . 12 4 . . 12 37 . 1 10 13 . . 200 Melee 8 | . . . . 2 . . 4 . . . . . . . . . . . 2 . . . . Projectile 495 | . 29 . 40 7 . 20 93 19 . . 12 4 . . 12 37 . 1 8 13 . . 200 AOE 2 | . . . . . . . . . . . . . . . . . . . 2 . . . . Critical Strikes 25 | . 1 . 1 . . 1 5 . . . 1 . . . . 1 . 1 2 . . . 12 Part Disruptions 1 | . . . . . . . . . . . . . . . . . . . . . . . 1 Damage Taken 9257 | . 368 . 505 186 . 252 1570 249 . . 170 66 . . 203 1056 . 28 395 246 . . 3963 Core 1999 | . 65 . 30 . . 46 115 34 . . 81 14 . . 81 235 . . 76 53 . . 1169 Absorbed by Shields 72 | . . . . . . . . . . . . . . . . . . . 72 . . . . Redirected to Shielding 265 | . . . . . . . . . . . 35 11 . . 63 . . . . 18 . . 138 Regen/Repaired (Parts) 391 | . . . . . . . . . . 110 . . . . . 16 . . 18 . . . 247 Core Remaining (%) 81 | 100 . 74 . . . 81 79 . . . 83 . . . 88 . . . . 63 . . . Volleys Fired 287 | 11 43 . 43 17 . 10 47 12 . . . . . . . 40 3 11 14 8 . 2 26 Largest 3 | 2 2 . 2 2 . 2 2 2 . . . . . . . 2 3 3 3 3 . 3 3 Hottest 151 | 70 70 . 79 100 . 46 80 121 . . . . . . . 118 151 151 106 151 . 106 151 Shots Fired 547 | 22 86 . 86 31 . 20 95 19 . . . . . . . 52 7 16 31 20 . 7 55 Gun 467 | 22 86 . 86 28 . 20 85 18 . . . . . . . 12 4 5 31 12 . 7 51 Cannon 75 | . . . . . . . 10 . . . . . . . . 39 3 11 . 8 . . 4 Launcher 1 | . . . . . . . . 1 . . . . . . . . . . . . . . . Special 4 | . . . . 3 . . . . . . . . . . . 1 . . . . . . . Kinetic 347 | 11 50 . 48 28 . 20 67 12 . . . . . . . 12 4 5 26 12 . 5 47 Thermal 187 | 11 36 . 38 3 . . 28 6 . . . . . . . 39 3 11 . 8 . . 4 Explosive 1 | . . . . . . . . 1 . . . . . . . . . . . . . . . Electromagnetic . | . . . . . . . . . . . . . . . . . . . . . . . . Entropic 11 | . . . . . . . . . . . . . . . . . . . 5 . . 2 4 Robot Hit Streak 15 | 6 7 . 15 3 . 12 10 6 . . . . . . . 8 3 6 6 9 . 3 8 Robot Miss Streak 7 | 3 4 . 3 5 . 7 6 2 . . . . . . . 5 3 . 7 1 . 3 5 Penetration Max 1 | . . . . . . . . . . . . . . . . 1 1 . 1 . . . 1 Secondary Targets 7 | . 2 . 3 . . 1 . . . . . . . . . . . . . . . . 1 Max Gunslinging Chain 1 | . 1 . 1 . . 1 . . . . . . . . . . . . . . . . 1 Shots Hit Robots 355 | 13 53 . 57 14 . 14 59 17 . . 12 2 . . . 37 4 3 14 14 . 3 39 Core Hits 184 | 6 25 . 24 10 . 10 31 12 . . 2 2 . . . 18 2 . 5 2 . 3 32 Critical Kills 1 | . . . . . . . . . . . . . . . . . . . 1 . . . . Critical Parts Destroyed 6 | . . . 1 . . . . . . . . . . . . . . . . 2 . 1 2 Critical Strikes 17 | 1 1 . 6 . . . . . . . . . . . . 2 . . 1 2 . 2 2 Burn 7 | 1 1 . 5 . . . . . . . . . . . . . . . . . . . . Destroy 5 | . . . 1 . . . . . . . . . . . . . . . 1 2 . 1 . Impale 2 | . . . . . . . . . . . . . . . . 2 . . . . . . . Detonate 3 | . . . . . . . . . . . . . . . . . . . . . . 1 2 Melee Attacks 106 | . . . . . . . . 16 12 . 12 7 2 . 2 31 . . . 5 1 . 18 Impact 7 | . . . . . . . . 7 . . . . . . . . . . . . . . . Slashing 21 | . . . . . . . . 9 12 . . . . . . . . . . . . . . Piercing 68 | . . . . . . . . . . . 2 7 2 . 2 31 . . . 5 1 . 18 Sneak Attacks 21 | . . . . . . . . 4 . . 11 2 . . . 3 . . . . . . 1 Combat Hostiles . | . . . . . . . . . . . . . . . . . . . . . . . . Follow-up Attacks 1 | . . . . . . . . 1 . . . . . . . . . . . . . . . Damage Inflicted 8592 | 143 615 . 867 172 . 229 854 507 . . 171 165 . . . 1747 182 80 399 451 . 360 1650 Guns 4883 | 143 610 . 867 164 . 229 715 164 . . . . . . . 209 80 47 399 235 . 198 823 Cannons 1430 | . . . . . . . 139 . . . . . . . . 794 102 33 . 216 . . 146 Explosions 1029 | . . . . . . . . 63 . . . . . . . 326 . . . . . 162 478 Melee 1231 | . . . . . . . . 274 . . 171 165 . . . 418 . . . . . . 203 Ramming 19 | . 5 . . 8 . . . 6 . . . . . . . . . . . . . . . Kinetic 3635 | 55 348 . 461 164 . 229 570 106 . . . . . . . 209 80 47 359 235 . 113 659 Thermal 2930 | 88 262 . 406 . . . 284 58 . . . . . . . 794 102 33 . 216 . 162 525 Explosive 455 | . . . . . . . . 63 . . . . . . . 326 . . . . . . 66 Electromagnetic 33 | . . . . . . . . . . . . . . . . . . . . . . . 33 Impact 203 | . . . . . . . . 203 . . . . . . . . . . . . . . . Slashing 71 | . . . . . . . . 71 . . . . . . . . . . . . . . . Piercing 957 | . . . . . . . . . . . 171 165 . . . 418 . . . . . . 203 Entropic 289 | . . . . . . . . . . . . . . . . . . . 40 . . 85 164 Highest Corruption 10 | . . . . . . . 1 . . . . . . . . 2 2 2 2 1 . 7 10 Average Corruption 3 | . . . . . . . 1 . . . . . . . . 1 2 2 1 1 . 7 8 Corruption Purged . | . . . . . . . . . . . . . . . . . . . . . . . . Corruption Blocked . | . . . . . . . . . . . . . . . . . . . . . . . . Effects 72 | . . . . . . . 4 . . . . . . . . 1 14 14 . 4 . 2 33 Message Errors 23 | . . . . . . . 2 . . . . . . . . . 6 4 . 2 . 1 8 Matter Fused 12 | . . . . . . . . . . . . . . . . . 5 . . 1 . . 6 Heat Flow Errors 9 | . . . . . . . . . . . . . . . . 1 . 1 . . . . 7 Energy Discharges 6 | . . . . . . . . . . . . . . . . . . 3 . 1 . . 2 Parts Rejected 2 | . . . . . . . . . . . . . . . . . . . . . . . 2 Data Loss (minor) 9 | . . . . . . . . . . . . . . . . . 2 3 . . . . 4 Data Loss (major) 2 | . . . . . . . 1 . . . . . . . . . 1 . . . . . . Misfires 5 | . . . . . . . 1 . . . . . . . . . . 3 . . . 1 . Alerts 2 | . . . . . . . . . . . . . . . . . . . . . . . 2 Weapon Failures 2 | . . . . . . . . . . . . . . . . . . . . . . . 2 Overload Shots . | . . . . . . . . . . . . . . . . . . . . . . . . Overflow Damage 352 | . . . . . . . . 87 . . . . . . . 160 16 . . . . . 89 Projectiles 108 | . . . . . . . . . . . . . . . . 66 16 . . . . . 26 Explosions 86 | . . . . . . . . . . . . . . . . 86 . . . . . . . Melee 158 | . . . . . . . . 87 . . . . . . . 8 . . . . . . 63 Knockbacks 2 | . 1 . . . . . . 1 . . . . . . . . . . . . . . . Impact 2 | . 1 . . . . . . 1 . . . . . . . . . . . . . . . Kinetic . | . . . . . . . . . . . . . . . . . . . . . . . . Secondary . | . . . . . . . . . . . . . . . . . . . . . . . . Self-Inflicted Damage 91 | . . . . . . . . . . . . . . . . . . . . . . . 91 Shots 2 | . . . . . . . . . . . . . . . . . . . . . . . 2 Rammed 4 | . 1 . . 1 . . . 2 . . . . . . . . . . . . . . . Targets Rammed 4 | . 1 . . 1 . . . 2 . . . . . . . . . . . . . . . Kicked . | . . . . . . . . . . . . . . . . . . . . . . . . Crushed . | . . . . . . . . . . . . . . . . . . . . . . . . Highest Temperature 570 | 150 177 . 26 . . 11 370 18 . 407 15 . . . . 214 120 228 30 286 . 82 570 Average Temperature 71 | 65 59 . 13 . . 7 165 6 . 220 12 . . . . 42 58 106 5 124 . 31 76 Received Heat Transfer 2208 | . 216 . 147 15 . 99 549 54 . . 54 . . . . 165 . . 27 42 . . 840 Effects 9 | . . . . . . . 2 . . 2 . . . . . . . . . . . . 5 Energy Bleed 2 | . . . . . . . 1 . . 1 . . . . . . . . . . . . . Interference 4 | . . . . . . . . . . . . . . . . . . . . . . . 4 Matter Decay 2 | . . . . . . . 1 . . . . . . . . . . . . . . . 1 Damage (minor) 1 | . . . . . . . . . . 1 . . . . . . . . . . . . . Siege Activations . | . . . . . . . . . . . . . . . . . . . . . . . . Martial Activations . | . . . . . . . . . . . . . . . . . . . . . . . . Shielding Activations . | . . . . . . . . . . . . . . . . . . . . . . . . Robots Disrupted 1 | . . . . . . . . . . . . . . . . . . . . . . . 1 Combat Hostiles 1 | . . . . . . . . . . . . . . . . . . . . . . . 1 Robots Corrupted 1 | . . . . . . . . 1 . . . . . . . . . . . . . . . Combat Hostiles . | . . . . . . . . . . . . . . . . . . . . . . . . Parts Fried 1 | . . . . . . . . 1 . . . . . . . . . . . . . . . Impact Corruptions 4 | . . . . . . . . 4 . . . . . . . . . . . . . . . Robots Melted 2 | . . . 1 . . . . . . . . . . . . . 1 . . . . . . Combat Hostiles 2 | . . . 1 . . . . . . . . . . . . . 1 . . . . . . Parts Melted 6 | . . . 4 . . 1 . . . . . . . . . . 1 . . . . . . Heat Transferred 5065 | 333 851 . 1406 . . . 666 114 . . . . . . . 814 111 37 . 185 . 100 448 Parts Sabotaged . | . . . . . . . . . . . . . . . . . . . . . . . . Parts Stolen . | . . . . . . . . . . . . . . . . . . . . . . . . Parts Stripped . | . . . . . . . . . . . . . . . . . . . . . . . . Power Chain Reactions . | . . . . . . . . . . . . . . . . . . . . . . . . Alert | -11 -10 -10 -9 -9 -9 -8 -8 -7 -7 -7 -6 -6 -6 -6 -5 -5 -5 -5 -5 -4 -4 -4 -4 ------- Run | Yrd Mat Min Mat Min Exi Min Mat Fac Low Zio Pro Fac Low Dat Pro Fac Upp Upp War Pro Fac Was Fac Maximum Alert Level 2 | . . . 1 . . . . 1 . . . . . . . 2 . . . . . . 1 Low Security (%) 86 | 100 100 100 60 100 . 100 100 90 . . . 100 . . . 75 . . . . 100 100 64 Level 1 11 | . . . 39 . . . . 9 . . . . . . . 15 . . . . . . 35 Level 2 1 | . . . . . . . . . . . . . . . . 8 . . . . . . . Level 3 . | . . . . . . . . . . . . . . . . . . . . . . . . Level 4 . | . . . . . . . . . . . . . . . . . . . . . . . . Level 5 . | . . . . . . . . . . . . . . . . . . . . . . . . High Security . | . . . . . . . . . . . . . . . . . . . . . . . . Max Security . | . . . . . . . . . . . . . . . . . . . . . . . . Peak Influence 550 | 5 105 . 258 87 . 78 77 254 . . . 103 . . . 550 . . . . 15 10 279 Initial 87 | . . . . 87 . . . 30 . . . 74 . . . 31 . . . . . . . Average 69 | 1 21 . 125 7 . 27 12 90 . . . 52 . . . 123 . . . . 1 . 150 Influence Increases 4499 | 20 266 . 412 2 . 156 326 516 . . 206 97 45 . 120 1119 143 22 316 30 15 10 678 Destroy 0b10 Robot/C 1880 | . 160 . 280 . . 120 200 20 . . . . . . . 400 100 20 220 20 . . 340 Destroy 0b10 Robot/NC 185 | 20 20 . 15 . . . 20 30 . . 10 10 . . . 35 . . 10 . . . 15 Destroy Leader 386 | . 44 . 74 . . 20 46 16 . . . 2 . . . 94 10 . . 10 . . 70 Allied During Kill 182 | . . . . . . 16 10 . . . 1 . . . . 79 18 2 56 . . . . Successful Hack 246 | . 11 . 28 . . . 4 41 . . . 35 . . . 127 . . . . . . . Disable Machine 285 | . . . . . . . . 105 . . . . . . . 75 . . . . 15 . 90 Destroy Structure 210 | . 1 . . 2 . . 1 19 . . . 5 . . . 84 . . . . . 10 88 Partial Spotted 120 | . . . . . . . . 60 . . . . . . . 60 . . . . . . . Lose Combat Pursuer 1005 | . 30 . 15 . . . 45 225 . . 195 45 45 . 120 165 15 . 30 . . . 75 Influence Decreases 4414 | 20 266 . 186 228 . 156 257 337 248 . 88 215 45 . 70 627 611 96 224 122 15 10 593 Entered New Map 642 | . . . . 139 . . . 39 93 . . 44 . . . 19 201 15 . 92 . . . Time Decay 3186 | 20 246 . 186 89 . 156 204 278 155 . 68 161 45 . 40 502 410 81 164 30 15 10 326 Lost Part 406 | . 20 . . . . . 39 10 . . . 10 . . 30 20 . . 10 . . . 267 Lost Ally 154 | . . . . . . . 14 10 . . 20 . . . . 60 . . 50 . . . . Purge Threat 26 | . . . . . . . . . . . . . . . . 26 . . . . . . . Squads Dispatched 31 | . 2 . 4 . . . 2 5 . . . 1 . . . 8 . . . . . . 9 Investigation 10 | . . . 1 . . . . 2 . . . . . . . 2 . . . . . . 5 Extermination 9 | . . . . . . . . 2 . . . 1 . . . 3 . . . . . . 3 Reinforcement 11 | . 2 . 3 . . . 2 1 . . . . . . . 2 . . . . . . 1 Assault . | . . . . . . . . . . . . . . . . . . . . . . . . Garrison 1 | . . . . . . . . . . . . . . . . 1 . . . . . . . Intercept . | . . . . . . . . . . . . . . . . . . . . . . . . Searches Triggered . | . . . . . . . . . . . . . . . . . . . . . . . . Data Miner Redirects 2 | . . . . . . . . . . . . . . . . 1 . . . . . . 1 Construction Impeded 1 | . . . . . . . . . . . . . . . . . . . . . . . 1 Haulers Reinforced 3 | . . . . . . . . 1 . . . . . . . 2 . . . . . . . Active Scanning Responses . | . . . . . . . . . . . . . . . . . . . . . . . . Cargo Convoy Interrupts . | . . . . . . . . . . . . . . . . . . . . . . . . Stealth | -11 -10 -10 -9 -9 -9 -8 -8 -7 -7 -7 -6 -6 -6 -6 -5 -5 -5 -5 -5 -4 -4 -4 -4 --------- Run | Yrd Mat Min Mat Min Exi Min Mat Fac Low Zio Pro Fac Low Dat Pro Fac Upp Upp War Pro Fac Was Fac Distress Signals 18 | . 1 . 2 . . . 4 . . . . . . . 1 3 . . 3 . . . 4 Communications Jammed . | . . . . . . . . . . . . . . . . . . . . . . . . Distress Signals . | . . . . . . . . . . . . . . . . . . . . . . . . Times Spotted 279 | . 19 1 18 8 . 6 22 16 . . 24 4 3 . 16 50 6 3 38 5 . 6 34 Peak Tracking Total 13 | . 3 . 5 2 . 3 7 6 . . 9 3 3 . 10 5 4 4 13 4 . 6 11 Tactical Retreats 37 | . 2 . 1 . . . 3 5 . . 6 1 1 . 4 8 1 . 2 . . . 3 ECM-based Alert Blocks 3 | . . . . . . . . . . . . . . . . 3 . . . . . . . Traps | -11 -10 -10 -9 -9 -9 -8 -8 -7 -7 -7 -6 -6 -6 -6 -5 -5 -5 -5 -5 -4 -4 -4 -4 ------- Run | Yrd Mat Min Mat Min Exi Min Mat Fac Low Zio Pro Fac Low Dat Pro Fac Upp Upp War Pro Fac Was Fac Traps Triggered 9 | . 2 . . . . . 1 2 . . . 1 . . . 2 . . . . 1 . . Indirectly . | . . . . . . . . . . . . . . . . . . . . . . . . Trap Hack Attempts . | . . . . . . . . . . . . . . . . . . . . . . . . Triggered . | . . . . . . . . . . . . . . . . . . . . . . . . Disarmed . | . . . . . . . . . . . . . . . . . . . . . . . . Reprogrammed . | . . . . . . . . . . . . . . . . . . . . . . . . Reused 2 | . . . . . . . . . . . . . . . . . 2 . . . . . . Traps Extracted . | . . . . . . . . . . . . . . . . . . . . . . . . Installed 3 | . . . . . . . . . . . . . . . . . 3 . . . . . . Triggered 2 | . . . . . . . . . . . . . . . . . 2 . . . . . . Most Traps Carried 1 | . . . . . . . . . . . . . . . . . 1 . . . . . . Machines | -11 -10 -10 -9 -9 -9 -8 -8 -7 -7 -7 -6 -6 -6 -6 -5 -5 -5 -5 -5 -4 -4 -4 -4 ---------- Run | Yrd Mat Min Mat Min Exi Min Mat Fac Low Zio Pro Fac Low Dat Pro Fac Upp Upp War Pro Fac Was Fac Machines Disabled 20 | . . . . . . . . 7 . . . . . . . 5 . . 1 . 1 . 6 Max in Single Turn 4 | . . . . . . . . 2 . . . . . . . 1 . . . . 1 . 4 Garrison Access 2 | . . . . . . . . . . . . 1 . . . 1 . . . . . . . Machines Repaired . | . . . . . . . . . . . . . . . . . . . . . . . . Machines Dismantled . | . . . . . . . . . . . . . . . . . . . . . . . . Machines Sabotaged . | . . . . . . . . . . . . . . . . . . . . . . . . Overloaded Fab Kills . | . . . . . . . . . . . . . . . . . . . . . . . . Hacking | -11 -10 -10 -9 -9 -9 -8 -8 -7 -7 -7 -6 -6 -6 -6 -5 -5 -5 -5 -5 -4 -4 -4 -4 --------- Run | Yrd Mat Min Mat Min Exi Min Mat Fac Low Zio Pro Fac Low Dat Pro Fac Upp Upp War Pro Fac Was Fac Machines Accessed 69 | . 7 . 3 . 1 . 2 11 . 1 2 5 . 4 . 19 2 . 4 . . . 8 Terminals 32 | . 7 . 1 . . . 2 6 . . 1 3 . . . 10 . . . . . . 2 Fabricators 11 | . . . . . . . . 2 . . . . . . . 5 . . . . . . 4 Repair Stations 3 | . . . . . . . . . . . . . . . . 1 . . . . . . 2 Recycling Units 2 | . . . . . . . . 1 . . 1 . . . . . . . . . . . . Scanalyzers 6 | . . . 2 . . . . 2 . . . 1 . . . 1 . . . . . . . Garrison Access 3 | . . . . . . . . . . . . 1 . . . 2 . . . . . . . Total Hacks 217 | . 22 . 12 . 1 . 5 28 . 4 3 24 . 27 . 57 2 . 10 . . . 22 Successful 145 | . 12 . 7 . 1 . 2 17 . 4 2 16 . 27 . 32 2 . 10 . . . 13 Failed 71 | . 10 . 5 . . . 3 11 . . 1 7 . . . 25 . . . . . . 9 Catastrophic 5 | . . . . . . . . . . . . 1 . . . 3 . . . . . . 1 Database Lockouts 1 | . . . . . . . . . . . . 1 . . . . . . . . . . . Manual 82 | . 17 . 2 . . . 3 12 . . . 14 . . . 24 . . 1 . . . 9 Terminals 102 | . 22 . 2 . . . 5 17 . . 1 18 . . . 31 . . . . . . 6 Fabricators 34 | . . . . . . . . 5 . . . . . . . 17 . . . . . . 12 Repair Stations 6 | . . . . . . . . . . . . . . . . 2 . . . . . . 4 Recycling Units 4 | . . . . . . . . 2 . . 2 . . . . . . . . . . . . Scanalyzers 21 | . . . 10 . . . . 4 . . . 4 . . . 3 . . . . . . . Garrison Access 6 | . . . . . . . . . . . . 2 . . . 4 . . . . . . . Terminal Hacks 67 | . 2 . . . 1 . 1 5 . 4 1 4 . 27 . 9 2 . 10 . . . 1 Record 22 | . . . . . 1 . . . . . . . . 11 . . . . 9 . . . 1 Part Schematic 15 | . . . . . . . . . . 4 . 2 . 8 . 1 . . . . . . . Robot Schematic 5 | . . . . . . . . . . . . . . 5 . . . . . . . . . Robot Analysis 3 | . . . . . . . . 1 . . . . . . . 2 . . . . . . . Prototype ID Bank 4 | . 1 . . . . . . . . . . . . 3 . . . . . . . . . Open Door 4 | . . . . . . . . . . . 1 . . . . . 2 . 1 . . . . Branch Access Points 3 | . . . . . . . . 1 . . . 1 . . . 1 . . . . . . . Unreport Threat 1 | . . . . . . . . . . . . . . . . 1 . . . . . . . Locate Traps 3 | . 1 . . . . . . 1 . . . . . . . 1 . . . . . . . Extermination Status 1 | . . . . . . . . . . . . . . . . 1 . . . . . . . Recall Reinforcements 1 | . . . . . . . 1 . . . . . . . . . . . . . . . . Hauler Manifests 1 | . . . . . . . . . . . . . . . . 1 . . . . . . . Registered Components 2 | . . . . . . . . 1 . . . 1 . . . . . . . . . . . Zone Layout 2 | . . . . . . . . 1 . . . . . . . 1 . . . . . . . Fabricator Hacks 17 | . . . . . . . . 2 . . . . . . . 10 . . . . . . 5 Network Status 2 | . . . . . . . . . . . . . . . . 1 . . . . . . 1 Load Schematic 11 | . . . . . . . . 2 . . . . . . . 5 . . . . . . 4 Build 4 | . . . . . . . . . . . . . . . . 4 . . . . . . . Repair Station Hacks 6 | . . . . . . . . . . . . . . . . 2 . . . . . . 4 Scan Component 3 | . . . . . . . . . . . . . . . . 1 . . . . . . 2 Repair 3 | . . . . . . . . . . . . . . . . 1 . . . . . . 2 Recycling Unit Hacks 3 | . . . . . . . . 2 . . 1 . . . . . . . . . . . . Process 1 | . . . . . . . . 1 . . . . . . . . . . . . . . . Retrieve Matter 1 | . . . . . . . . 1 . . . . . . . . . . . . . . . Retrieve Components 1 | . . . . . . . . . . . 1 . . . . . . . . . . . . Scanalyzer 12 | . . . 6 . . . . 2 . . . 3 . . . 1 . . . . . . . Insert Component 6 | . . . 3 . . . . 1 . . . 1 . . . 1 . . . . . . . Analyze 4 | . . . 2 . . . . 1 . . . 1 . . . . . . . . . . . Retrieve Study 2 | . . . 1 . . . . . . . . 1 . . . . . . . . . . . Garrison Access Hacks 2 | . . . . . . . . . . . . 1 . . . 1 . . . . . . . Seal Access 2 | . . . . . . . . . . . . 1 . . . 1 . . . . . . . Unauthorized Hacks 38 | . 10 . 1 . . . 1 6 . . . 8 . . . 9 . . . . . . 3 Terminals 28 | . 10 . 1 . . . 1 4 . . . 8 . . . 4 . . . . . . . Assimilate 4 | . . . . . . . . 1 . . . 1 . . . 2 . . . . . . . Botnet 13 | . 4 . 1 . . . 1 2 . . . 3 . . . 2 . . . . . . . Operators 2 | . . . . . . . . 1 . . . 1 . . . . . . . . . . . Skim 9 | . 6 . . . . . . . . . . 3 . . . . . . . . . . . Fabricators 10 | . . . . . . . . 2 . . . . . . . 5 . . . . . . 3 Prioritize 3 | . . . . . . . . . . . . . . . . 3 . . . . . . . Recompile 7 | . . . . . . . . 2 . . . . . . . 2 . . . . . . 3 Repair Stations . | . . . . . . . . . . . . . . . . . . . . . . . . Recycling Units . | . . . . . . . . . . . . . . . . . . . . . . . . Scanalyzers . | . . . . . . . . . . . . . . . . . . . . . . . . Garrison Access . | . . . . . . . . . . . . . . . . . . . . . . . . Data Cores Recovered 1 | . 1 . . . . . . . . . . . . . . . . . . . . . . Used 1 | . 1 . . . . . . . . . . . . . . . . . . . . . . Hacking Detections 48 | . 6 . 3 . . . 2 10 . . . 3 . . . 17 . . . . . . 7 Full Trace Events 3 | . 1 . . . . . . . . . . . . . . . . . . . . . 2 Feedback Events 1 | . . . . . . . . . . . . . . . . . . . . . . . 1 Corruption 1 | . . . . . . . . . . . . . . . . . . . . . . . 1 Feedback Blocked . | . . . . . . . . . . . . . . . . . . . . . . . . Robot Schematics Acquired 5 | . . . . . . . . . . . . . . 5 . . . . . . . . . Robots Built . | . . . . . . . . . . . . . . . . . . . . . . . . Authchips . | . . . . . . . . . . . . . . . . . . . . . . . . Time . | . . . . . . . . . . . . . . . . . . . . . . . . Total Robot Build Rating . | . . . . . . . . . . . . . . . . . . . . . . . . Part Schematics Acquired 19 | . . . 2 . . . . 1 . 4 . 3 . 8 . 1 . . . . . . . Parts Built 4 | . . . . . . . . . . . . . . . . 4 . . . . . . . Authchips 4 | . . . . . . . . . . . . . . . . 4 . . . . . . . Time 252 | . . . . . . . . . . . . . . . . 252 . . . . . . . Total Part Build Rating 24 | . . . . . . . . . . . . . . . . 24 . . . . . . . Part Studies Acquired 2 | . . . 1 . . . . . . . . 1 . . . . . . . . . . . Parts Repaired 3 | . . . . . . . . . . . . . . . . 1 . . . . . . 2 Time 66 | . . . . . . . . . . . . . . . . 22 . . . . . . 44 Parts Recycled . | . . . . . . . . . . . . . . . . . . . . . . . . Recycled Matter 20 | . . . . . . . . 20 . . . . . . . . . . . . . . . Retrieved Matter 20 | . . . . . . . . 20 . . . . . . . . . . . . . . . Retrieved Components 3 | . . . . . . . . . . . 3 . . . . . . . . . . . . Parts Scanalyzed 5 | . . . 3 . . . . 1 . . . 1 . . . . . . . . . . . Part Schematics Acquired 4 | . . . 2 . . . . 1 . . . 1 . . . . . . . . . . . Parts Damaged . | . . . . . . . . . . . . . . . . . . . . . . . . Bothacking | -11 -10 -10 -9 -9 -9 -8 -8 -7 -7 -7 -6 -6 -6 -6 -5 -5 -5 -5 -5 -4 -4 -4 -4 ------------ Run | Yrd Mat Min Mat Min Exi Min Mat Fac Low Zio Pro Fac Low Dat Pro Fac Upp Upp War Pro Fac Was Fac Used RIF Installer . | . . . . . . . . . . . . . . . . . . . . . . . . Robots Hacked 1 | . . . . . . . . . . . . . . . . 1 . . . . . . . Non-combat . | . . . . . . . . . . . . . . . . . . . . . . . . Combat 1 | . . . . . . . . . . . . . . . . 1 . . . . . . . Robot Hacks Applied 1 | . . . . . . . . . . . . . . . . 1 . . . . . . . parse_system 1 | . . . . . . . . . . . . . . . . 1 . . . . . . . Relay Couplers Released . | . . . . . . . . . . . . . . . . . . . . . . . . Fabnet Peak Effective % . | . . . . . . . . . . . . . . . . . . . . . . . . Robots Rewired 10 | . . . . . . . . . . . 5 . . . . . . . 5 . . . . Allies Hacked . | . . . . . . . . . . . . . . . . . . . . . . . . Hacks Repelled 1 | . . . . . . . . . . . . . . . . . . . 1 . . . . Allies | -11 -10 -10 -9 -9 -9 -8 -8 -7 -7 -7 -6 -6 -6 -6 -5 -5 -5 -5 -5 -4 -4 -4 -4 -------- Run | Yrd Mat Min Mat Min Exi Min Mat Fac Low Zio Pro Fac Low Dat Pro Fac Upp Upp War Pro Fac Was Fac Total Allies 19 | . . . . 3 . . . 1 . . 6 1 . . . 2 . . 5 . . 1 . Largest Group 5 | . . . . 3 3 3 2 1 . . 3 1 1 . . 2 . . 5 . . 1 . Highest-Rated Group 241 | . . . . 40 39 39 32 10 . . 36 10 10 . . 52 . . 241 . . 46 . Highest-Rated Ally 64 | . . . . 16 16 16 16 10 . . 30 10 10 . . 26 . . 64 . . 46 . Total Orders 47 | . . . . . . . . 4 . . 2 . 2 . . 27 4 5 1 . . 2 . STAY 4 | . . . . . . . . 2 . . . . 1 . . . . 1 . . . . . FOLLOW 4 | . . . . . . . . 2 . . 1 . 1 . . . . . . . . . . GUARD 2 | . . . . . . . . . . . 1 . . . . . . . 1 . . . . RETURN 37 | . . . . . . . . . . . . . . . . 27 4 4 . . . 2 . Ally Attacks 349 | . . . . 12 . 16 31 . . . 18 . . . . 159 24 7 55 . . 27 . Total Damage 7093 | . . . . 122 . 122 299 . . . 204 . . . . 3325 554 171 1602 . . 694 . Kills 38 | . . . . 1 . 1 4 . . . . . . . . 15 4 1 12 . . . . Allies Corrupted 1 | . . . . . . . . . . . . . . . . 1 . . . . . . . Allies Melted 2 | . . . . . . . . . . . 1 . . . . . . . 1 . . . . Intel | -11 -10 -10 -9 -9 -9 -8 -8 -7 -7 -7 -6 -6 -6 -6 -5 -5 -5 -5 -5 -4 -4 -4 -4 ------- Run | Yrd Mat Min Mat Min Exi Min Mat Fac Low Zio Pro Fac Low Dat Pro Fac Upp Upp War Pro Fac Was Fac Active Infowar (turns) 10181 | 4 573 . 189 . . . 202 773 353 419 475 349 425 34 252 1594 982 660 1212 739 78 75 793 Optics 6102 | . . . . . . . . . . 119 475 349 425 34 252 1594 982 660 1212 . . . . Sensors 3517 | . . . . . . . . 50 353 138 222 342 420 32 180 860 . . . . 52 75 793 IFF 2374 | . . . . . . . . . . . . . . . . . 633 659 316 739 27 . . Structural 339 | . . . . . . . . 339 . . . . . . . . . . . . . . . Seismic 968 | 4 573 . 189 . . . 202 . . . . . . . . . . . . . . . . Decoding 1939 | . . . . . . . . . . . . 348 425 34 252 880 . . . . . . . Machine Analysis 1904 | . . . . . . . . 773 353 419 359 . . . . . . . . . . . . ECM 39 | . . . . . . . . . . . . . . . . 39 . . . . . . . Robot Analysis Total 3 | . . . . . . . . 1 . . . . . . . 2 . . . . . . . Derelict Logs Recovered 17 | . . 1 . 1 . . . . 2 1 1 . 3 . 1 . 2 2 . 3 . . . Drone Launches 66 | . . . . . . . . . . . . . . . . 48 8 6 . . . 4 . Drone Recoveries 60 | . . . . . . . . . . . . . . . . 45 7 6 . . . 2 . Decoded 0b10 Intel 31 | . . . . . . . . . . . . 10 . . . 21 . . . . . . . Traps 2 | . . . . . . . . . . . . . . . . 2 . . . . . . . Emergency Access 1 | . . . . . . . . . . . . . . . . 1 . . . . . . . Items 17 | . . . . . . . . . . . . 7 . . . 10 . . . . . . . Machines 3 | . . . . . . . . . . . . 2 . . . 1 . . . . . . . Patrols 5 | . . . . . . . . . . . . . . . . 5 . . . . . . . Guards 3 | . . . . . . . . . . . . 1 . . . 2 . . . . . . . Exploration | -11 -10 -10 -9 -9 -9 -8 -8 -7 -7 -7 -6 -6 -6 -6 -5 -5 -5 -5 -5 -4 -4 -4 -4 ------------- Run | Yrd Mat Min Mat Min Exi Min Mat Fac Low Zio Pro Fac Low Dat Pro Fac Upp Upp War Pro Fac Was Fac Turns Passed 14086 | 81 866 293 632 1147 364 438 722 912 353 419 475 349 425 34 252 1594 982 660 1213 740 78 84 973 Spaces Moved 14891 | 4 461 147 291 667 226 255 314 1417 735 1303 873 694 905 82 516 2176 782 587 856 566 61 82 891 Core 14 | . 2 . . . . . . . . 7 . . . . . . . . . . . . 5 Treads 2515 | . 282 147 291 667 226 255 314 173 . . . . . . . . 87 7 66 . . . . Legs 181 | 4 177 . . . . . . . . . . . . . . . . . . . . . . Wheels 3077 | . . . . . . . . . . . . . . . . 450 695 580 668 566 61 . 57 Hover 1033 | . . . . . . . . . . . . . . . . . . . 122 . . 82 829 Flight 8071 | . . . . . . . . 1244 735 1296 873 694 905 82 516 1726 . . . . . . . Fastest Speed 26 | 120 120 160 160 160 160 160 160 28 28 28 26 32 39 39 32 26 100 100 53 115 115 52 48 Average Speed 72 | 120 144 175 160 160 160 160 162 51 28 29 28 35 39 39 38 42 115 101 107 115 115 53 59 Slowest Speed 250 | 120 190 240 160 160 160 160 167 245 28 250 32 39 39 39 109 115 240 240 240 115 115 117 161 Overloaded Moves . | . . . . . . . . . . . . . . . . . . . . . . . . Propulsion Burnouts . | . . . . . . . . . . . . . . . . . . . . . . . . Robots Hopped 28 | . . . . . . . . 2 . . 5 2 . . 3 16 . . . . . . . Potential Cave-ins . | . . . . . . . . . . . . . . . . . . . . . . . . Cave-ins Triggered . | . . . . . . . . . . . . . . . . . . . . . . . . Exploration Rate (%) 58 | 2 65 39 34 98 62 56 44 40 80 88 85 21 86 76 64 51 85 76 82 73 3 76 20 Regions Visited 23 Branch Regions 14 Pre-discovered Areas 5 | . . . . 1 1 . . . . 1 . . . 1 . . . 1 . . . . . Known Exits Taken 13 | . . . . . . . . 1 1 1 1 1 1 1 1 1 1 1 1 1 . . . Unknown Exits Taken 8 | 1 1 1 1 1 1 1 1 . . . . . . . . . . . . . . . . Scrap Searched 20 | . . 1 . 1 . . . . 4 3 2 . 2 . 1 . 1 1 . 4 . . . Spaces Dug 69 | . . . . 3 . . . 6 12 . . 5 2 . 2 14 . 10 . 5 . . 10 Terrain Destroyed 154 | . . . . 3 . . . 19 12 . . 5 2 . 2 38 1 10 3 8 . 10 41 Melee 52 | . . . . . . . . 6 12 . . 5 2 . 2 12 . . . 3 . . 10 Projectile 42 | . . . . 3 . . . . . . . . . . . 12 1 10 3 5 . 1 7 AOE 60 | . . . . . . . . 13 . . . . . . . 14 . . . . . 9 24 Terrain Rammed . | . . . . . . . . . . . . . . . . . . . . . . . . Walls Destroyed . | . . . . . . . . . . . . . . . . . . . . . . . . Machines Disabled . | . . . . . . . . . . . . . . . . . . . . . . . . Actions | -11 -10 -10 -9 -9 -9 -8 -8 -7 -7 -7 -6 -6 -6 -6 -5 -5 -5 -5 -5 -4 -4 -4 -4 --------- Run | Yrd Mat Min Mat Min Exi Min Mat Fac Low Zio Pro Fac Low Dat Pro Fac Upp Upp War Pro Fac Was Fac Total 17501 | 60 578 183 372 709 229 265 431 1550 862 1341 1088 782 971 82 560 2729 859 638 1125 634 67 119 1267 Wait 1526 | 45 40 25 20 16 2 1 32 54 115 14 189 45 61 . 36 325 36 30 121 40 . 21 258 Move 14816 | 3 460 146 290 666 225 254 313 1413 734 1302 863 689 904 81 510 2143 781 586 855 565 61 81 891 Hop 25 | . . . . . . . . 1 . . 4 2 . . 2 16 . . . . . . . Pick Up 163 | . 12 7 7 2 . . 11 13 . 2 1 10 . . . 42 12 3 22 1 . 1 17 Fast Attach 90 | 1 7 1 2 2 . . 1 9 1 10 4 . 2 . . 17 2 1 21 1 2 . 6 Attach 94 | . 3 . 2 . . . 10 2 . . . 4 . . 3 23 3 . 8 7 . 6 23 Detach 45 | . . . . . . . . . . 6 1 1 . . 3 11 1 1 3 5 . 4 9 Swap 79 | . 4 2 3 2 1 . 12 12 . 1 3 5 1 1 4 8 2 2 2 1 2 1 10 Drop 169 | . 8 2 5 3 1 . 5 17 . 6 4 4 1 . . 47 13 3 37 1 1 2 9 Fire 287 | 11 43 . 43 17 . 10 47 12 . . . . . . . 40 3 11 14 8 . 2 26 Melee 105 | . . . . . . . . 15 12 . 12 7 2 . 2 31 . . . 5 1 . 18 Ram . | . . . . . . . . . . . . . . . . . . . . . . . . Kick . | . . . . . . . . . . . . . . . . . . . . . . . . Crush 4 | . 1 . . 1 . . . 2 . . . . . . . . . . . . . . . Escape Stasis 30 | . . . . . . . . . . . . 15 . . . 15 . . . . . . . Rewire 49 | . . . . . . . . . . . 7 . . . . . . . 42 . . . . Trap 3 | . . . . . . . . . . . . . . . . . 3 . . . . . . Miscellaneous 16 | . . . . . . . . . . . . . . . . 11 3 1 . . . 1 . Route ------- -11/Scrapyard -10/Materials (discovered 3 exits: *Mat x2 / [*Min]) -10/Mines -9/Materials (discovered 2 exits: *Mat / [*Min]) -9/Mines (discovered 4 exits: *Mat x2 / *Exi / *Zio) -9/Exiles -8/Mines -8/Materials (discovered 2 exits: *Fac x2) -7/Factory (discovered 4 exits: *Fac x2 / *Low x2) -7/Lower Caves -7/Zion -6/Proximity Caves -6/Factory (discovered 3 exits: Fac / *Low x2) -6/Lower Caves (discovered 2 exits: *Low / *Dat) -6/Data Miner -5/Proximity Caves -5/Factory (discovered 4 exits: *Fac x2 / *Upp x2) -5/Upper Caves -5/Upper Caves -5/Warlord -4/Proximity Caves -4/Factory (discovered 2 exits: [*Upp] / Arm) -4/Waste -4/Factory History --------- Turn | Location | Event 52 | -11/Scrapyard | Discovered new exit (range 2) 82 | -11/Scrapyard | Entered Materials 305 | -10/Materials | Build established: Mutant 444 | -10/Materials | Discovered new exit (range 5) 686 | -10/Materials | Discovered new exit (range 16) 746 | -10/Materials | Discovered new exit (range 16) 948 | -10/Materials | Entered Mines 1149 | -10/Mines | Learned Materials stockpile data 1149 | -10/Mines | Joined a pair of Derelicts in attacking an 0b10 outpost 1231 | -10/Mines | Discovered new exit (range 3) 1241 | -10/Mines | Entered Materials 1241 | -9/Materials | Evolved 2 slots: Propulsion x1, Utility x1 1445 | -9/Materials | Discovered new exit (range 6) 1446 | -9/Materials | Met 8R-AWN 1528 | -9/Materials | Build established: Scavenger-Mutant 1618 | -9/Materials | Discovered new exit (range 16) 1873 | -9/Materials | Entered Mines 1874 | -9/Mines | Followed 8R-AWN into the Mines 1886 | -9/Mines | Discovered new exit (range 14) 1923 | -9/Mines | Assembled infested the area 1934 | -9/Mines | Found a Scrap Suit stashed away for nefarious purposes 2011 | -9/Mines | Learned location of Storage (-9) 2138 | -9/Mines | Discovered new exit (range 5) 2381 | -9/Mines | Assisted by bots powering up and referring to "LRC-V3" 2598 | -9/Mines | Discovered new exit (range 10) 2622 | -9/Mines | A Derelict revealed a hidden shortcut to a safe place 2639 | -9/Mines | Learned Materials emergency access door positions 2741 | -9/Mines | Received a Rocket Launcher from a helpful Derelict 3020 | -9/Mines | Entered Exiles 3020 | -9/Exiles | Accompanied by 3 allies 3052 | -9/Exiles | Build established: Mutant 3059 | -9/Exiles | Welcomed by 8R-AWN 3088 | -9/Exiles | Met EX-HEX 3136 | -9/Exiles | Met EX-BIN 3280 | -9/Exiles | Met EX-DEC 3297 | -9/Exiles | Learned location of Zion (-7) 3370 | -9/Exiles | Discovered new exit (range 10) 3384 | -9/Exiles | Entered Mines 3384 | -8/Mines | Accompanied by 3 allies 3702 | -8/Mines | Discovered new exit (range 5) 3822 | -8/Mines | Entered Materials 3822 | -8/Materials | Accompanied by 2 allies 3822 | -8/Materials | Evolved 2 slots: Propulsion x1, Utility x1 4017 | -8/Materials | Discovered new exit (range 16) 4140 | -8/Materials | Lost 9 parts (1p3n5u) 4387 | -8/Materials | Discovered new exit (range 5) 4421 | -8/Materials | Build established: Scavenger-Mutant 4544 | -8/Materials | Entered Factory 4544 | -7/Factory | Evolved 2 slots: Utility x2 5138 | -7/Factory | Discovered new exit (range 13) 5258 | -7/Factory | Build established: Scavenger-Sprinter 5280 | -7/Factory | Identified exit to Lower Caves 5364 | -7/Factory | Discovered new exit (range 15) 5456 | -7/Factory | Entered Lower Caves 5663 | -7/Lower Caves | Learned Factory trap positions 5678 | -7/Lower Caves | Encountered a Warlord checkpoint 5681 | -7/Lower Caves | Learned 8 Factory zone layouts 5699 | -7/Lower Caves | Build established: Scavenger-Scout 5705 | -7/Lower Caves | A Derelict revealed a hidden shortcut to a safe place 5707 | -7/Lower Caves | Identified exit to Zion 5809 | -7/Lower Caves | Entered Zion 5815 | -7/Zion | Learned Factory emergency access door positions 5842 | -7/Zion | Discovered new exit (range 15) 5900 | -7/Zion | Found Prototype Hackware 5900 | -7/Zion | Identified Exp. System Shield 5952 | -7/Zion | Learned location of Data Miner (-6) 6001 | -7/Zion | Found CR-A16's Pointy Stick 6024 | -7/Zion | Visited the Megawrench Repair Shop 6046 | -7/Zion | Met Imprinter 6091 | -7/Zion | Found Prototype Processor 6091 | -7/Zion | Identified Exp. Terrain Scan Processor 6093 | -7/Zion | Found Prototype Processor 6093 | -7/Zion | Identified Exp. Core Analyzer 6114 | -7/Zion | Found Prototype Processor 6114 | -7/Zion | Identified Exp. Targeting Computer 6121 | -7/Zion | Found Prototype Processor 6121 | -7/Zion | Identified Spectral Analyzer 6130 | -7/Zion | Found Prototype Processor 6130 | -7/Zion | Identified Exp. Melee Analysis Suite 6153 | -7/Zion | Megawrench repaired 6 parts 6176 | -7/Zion | Found Prototype Processor 6176 | -7/Zion | Identified Exp. Armor Integrity Analyzer 6226 | -7/Zion | Identified exit to Proximity Caves 6228 | -7/Zion | Entered Proximity Caves 6229 | -6/Proximity Caves | Greeted by an Infiltrator in a former 0b10 base 6268 | -6/Proximity Caves | Former 0b10 base attacked by MAIN.C 6628 | -6/Proximity Caves | 0b10 base defense nominally successful 6638 | -6/Proximity Caves | Lost 11 allies 6650 | -6/Proximity Caves | Learned location of 1 exit from Factory 6694 | -6/Proximity Caves | Discovered new exit (range 21) 6697 | -6/Proximity Caves | Attracted the attention of an 0b10 checkpoint 6701 | -6/Proximity Caves | Identified exit to Factory 6703 | -6/Proximity Caves | Entered Factory 6703 | -6/Factory | Evolved 2 slots: Utility x2 6704 | -6/Factory | Identified exit to Lower Caves 6705 | -6/Factory | Identified exit to Factory 6706 | -6/Factory | Loaded intel: 107 trap records 6750 | -6/Factory | Central database locked down 7052 | -6/Factory | Entered Lower Caves 7052 | -6/Lower Caves | Accompanied by 1 ally 7069 | -6/Lower Caves | Learned location of 1 exit from Factory 7131 | -6/Lower Caves | Learned Factory terminal intel 7188 | -6/Lower Caves | Build established: Hacker-Scout 7195 | -6/Lower Caves | Spotted B-75 Beast 7202 | -6/Lower Caves | Learned location of 1 exit from Factory 7214 | -6/Lower Caves | A Derelict revealed a hidden shortcut to meet someone special 7216 | -6/Lower Caves | Identified exit to Data Miner 7377 | -6/Lower Caves | Discovered new exit (range 5) 7380 | -6/Lower Caves | Identified exit to Lower Caves 7388 | -6/Lower Caves | Found Alien Artifact 7388 | -6/Lower Caves | Identified Core Expander 7388 | -6/Lower Caves | Installed Core Expander, added new Weapon slot 7477 | -6/Lower Caves | Entered Data Miner 7477 | -6/Data Miner | Discovered new exit (range 6) 7483 | -6/Data Miner | Met Data Miner 7493 | -6/Data Miner | Learned location of Section 7 (-2) 7493 | -6/Data Miner | Acquired the access code to Warlord's prototype stash 7500 | -6/Data Miner | Received God Mode back door access code from Data Miner 7508 | -6/Data Miner | Identified exit to Proximity Caves 7511 | -6/Data Miner | Entered Proximity Caves 7529 | -5/Proximity Caves | Learned Factory stockpile data 7592 | -5/Proximity Caves | Spotted B-75 Beast 7762 | -5/Proximity Caves | Discovered exit to Factory (range 4) 7763 | -5/Proximity Caves | Entered Factory 7763 | -5/Factory | Evolved 2 slots: Propulsion x1, Utility x1 7764 | -5/Factory | Identified exit to Upper Caves 7766 | -5/Factory | Loaded intel: 26 terminal locations 7789 | -5/Factory | Lost 3 parts (1p1n1u) 8214 | -5/Factory | Fabricated Combat Drone Bay (x1) 8307 | -5/Factory | Watched by a mysterious "MATRIX" hacker 8529 | -5/Factory | Repaired Xenon Bombardment Thruster+ 8640 | -5/Factory | Fabricated Combat Drone Bay (x1) 8756 | -5/Factory | Lost 3 allies 8814 | -5/Factory | Discovered new exit (range 13) 8878 | -5/Factory | Fabricated Combat Drone Bay (x1) 8905 | -5/Factory | Spotted B-75 Beast 8923 | -5/Factory | Revealed the true nature of CR-A16's Pointy Stick 8926 | -5/Factory | Destroyed B-75 Beast 8931 | -5/Factory | Build established: Hacker-Mutant 8935 | -5/Factory | Discovered new exit (range 14) 8961 | -5/Factory | Incoming investigation squad redirected 9103 | -5/Factory | Fabricated Combat Drone Bay (x1) 9264 | -5/Factory | Garrison activated, responded to threat 9357 | -5/Factory | Entered Upper Caves 9654 | -5/Upper Caves | Build established: Scavenger-Tank 9994 | -5/Upper Caves | Build established: Hacker-Skirmisher 10061 | -5/Upper Caves | Learned Factory terminal intel 10100 | -5/Upper Caves | Learned Factory terminal intel 10288 | -5/Upper Caves | Discovered new exit (range 14) 10300 | -5/Upper Caves | Identified exit to Upper Caves 10339 | -5/Upper Caves | Entered another Upper Caves area 10361 | -5/Upper Caves | Encountered a Warlord checkpoint 10444 | -5/Upper Caves | Learned location of Warlord (-5) 10491 | -5/Upper Caves | Attracted the attention of an 0b10 checkpoint 10645 | -5/Upper Caves | Learned Factory terminal intel 10986 | -5/Upper Caves | Discovered new exit (range 7) 10998 | -5/Upper Caves | Identified exit to Warlord 10999 | -5/Upper Caves | Entered Warlord 11036 | -5/Warlord | System corruption cleaned by Quarantine Array 11325 | -5/Warlord | Opened Warlord's prototype stash 11345 | -5/Warlord | Found Prototype Hackware 11345 | -5/Warlord | Identified System Mapper 11482 | -5/Warlord | Met Warlord 11507 | -5/Warlord | Warlord's base attacked by MAIN.C 11608 | -5/Warlord | Found Prototype Energy Gun 11608 | -5/Warlord | Identified Vortex Rail 11611 | -5/Warlord | Found Vortex Rail 11856 | -5/Warlord | Spotted Striker 11857 | -5/Warlord | Warlord forces counterattacked 11865 | -5/Warlord | Spotted Striker 11877 | -5/Warlord | Allies destroyed Striker 11918 | -5/Warlord | Lost 10 allies 12071 | -5/Warlord | Discovered new exit (range 22) 12092 | -5/Warlord | Lost 3 allies 12138 | -5/Warlord | Spotted Striker 12151 | -5/Warlord | Destroyed Striker 12180 | -5/Warlord | Lost 10 allies 12182 | -5/Warlord | Warlord base infiltrated, sounded retreat 12189 | -5/Warlord | Identified exit to Proximity Caves 12207 | -5/Warlord | Spotted Striker 12207 | -5/Warlord | Spotted Striker 12212 | -5/Warlord | Entered Proximity Caves 12375 | -4/Proximity Caves | Unaware initiated a cargo recovery operation 12636 | -4/Proximity Caves | Build established: Hacker-Tank 12719 | -4/Proximity Caves | Identified exit to Factory 12785 | -4/Proximity Caves | Learned Research terminal intel 12952 | -4/Proximity Caves | Entered Factory 12952 | -4/Factory | Evolved 2 slots: Propulsion x1, Utility x1 12953 | -4/Factory | Identified exit to Armory 12954 | -4/Factory | Loaded intel: 28 terminal locations 12973 | -4/Factory | Discovered new exit (range 16) 13030 | -4/Factory | Sucked down chute 13030 | -4/Factory | Entered Waste 13031 | -4/Waste | Met a frightened Derelict 13045 | -4/Waste | EMP discharged 13046 | -4/Waste | Spotted C-40 Crusher 13062 | -4/Waste | Spotted C-40 Crusher 13062 | -4/Waste | Spotted C-40 Crusher 13062 | -4/Waste | Spotted C-40 Crusher 13106 | -4/Waste | Spotted C-40 Crusher 13108 | -4/Waste | Lost 3 allies 13109 | -4/Waste | Discovered new exit (range 11) 13109 | -4/Waste | Spotted C-40 Crusher 13113 | -4/Waste | Identified exit to Factory 13114 | -4/Waste | Entered Factory 13115 | -4/Factory | Loaded intel: 28 terminal locations 13340 | -4/Factory | Lost 6 parts (2n2u2w) 13376 | -4/Factory | Destroyed 9 combat bots 13417 | -4/Factory | Incoming investigation squad redirected 13699 | -4/Factory | Repaired KE Penetrator 13930 | -4/Factory | Repaired Autogun 13999 | -4/Factory | Spotted B-86 Titan 14027 | -4/Factory | Destroyed B-86 Titan 14052 | -4/Factory | System corruption reached 10% 14063 | -4/Factory | Core integrity fell below 50% 14082 | -4/Factory | Core integrity fell below 20% 14087 | -4/Factory | Destroyed by G-67 Veteran with Plasma Rifle Last Messages --------------- 14077_ Vortex Rail destroyed. 14077_ Penetrated by Slug. 14078_ K-01 Serf collects debris. 14079_ Dropped Lrg. Storage Unit. 14080_ Dropped Imp. Utility Shielding. 14080_ Dropped Hardcell Cannon. 14081_ Slug penetrates Wall. 14081_ Penetrated by Slug. 14081_ Slug penetrates Wall. 14081_ Acquired Authchip [Device]. 14082_ Penetrated by Slug. 14082_ Exp. System Shield destroyed. 14082_ K-01 Serf collects debris. 14083_ M-36 Artificer repairs G-67 Veteran. 14083_ Acquired Authchip [Device]. 14085_ Penetrated by Slug. 14085_ Slug penetrates Wall. 14085_ Penetrated by Slug. 14085_ Imp. Hacking Suite destroyed. 14085_ K-01 Serf collects debris. Map ----- +----------------------------------------------------+ | ????# # # " ]] " #?????????????# ?? | | ????# # # " ]] " """#????????????????? | | ????# # # " "]"""#????????????????? | | ????# # # " "]] "#????????????????? | | ????# # # " "]"F"#????????????????? | | ????# + # " " """#????????????????? | | ????# # # #????????????????? | | ????# # ##############????????????????? | | ????########## #?????????????????????????????? | | ??????######## #?????????????????????????????? | | ??????# ## #?????????????????????????????? | | ??????#""" + #??????????????#########??????? | | #######"R ## #??????????????# #??????? | | #""" ## #??????????????# #??????? | | """ #""" ## #??????????????# #??????? | | """ # ## #??????????????# #??????? | | """ # """ ## #??????????????# #??????? | | # """ ## #??????????????# #??????? | | """ # """ / #??????????????# #?????? | | """ # ## +??????????????# #?????# | | """ # ## #?"T"???????#### #?????# | | # ## #?"""??????## ## g #?????# | | #/######+##### ############]!| g ####### | | !*!g! ####+## ## | | ] %g%!* ## | | @ k [ =! g | | [ | | ! | | #+#################### T#### #;######!!! [ | | ##???????###???# # ???#!!! | | ##?????????????# / ?#!! | | #??????????????# #### # | | """ """ """ #??????????????# #??? /! [# | | """ """ """ #??????????????# #???? /! # | | """ """ """ #??????????????# #????###?#" ##= # | | ##############?????????????###+###?????????# ## # | | ##???????##?????????????????????????????# ##### | | #???????????????????????????????????????# #???? | | #???????????????????????????????????????# #???? | | #???????????????????????????????????????# #???? | | #???????????????????????????????????????? ????? | | " #???????????????????????????????????????? ????? | | #???????????????????????????????????????? ????? | | " #???????????????????????????????????????? ????? | | #???????????????????????????????????????? ????? | | " #???????????????????????????????????????? ????? | | #???????????????????????????????????????? ????? | | #?????????????????????????????????????????????? | | ####?????????????????????????????????????????????? | | ?????????????????????????????????????????????????? | +----------------------------------------------------+ Best States ------------- Heat Dissipation 48 Energy Generation 21 Energy Capacity 525 Matter Stores 300 Matter Capacity 300 Sight Range 24 Robot Scan Range 16 Terrain Scan Density 10 ECM Strength 2 Additional Mass Support 9 Armor Coverage 225 Propulsion Shielding 66 Utility Shielding 66 Evasion (%) 64 Recoil Reduction 4 Offensive Hacking 46 Defensive Hacking 16 Authchip Count 3 Item Schematics ----------------- Hrd. Light Armor Plating | -9/Materials | Scanalyzed Heat Sink | -9/Materials | Scanalyzed Imp. Propulsion Shielding | -7/Factory | Scanalyzed Riot Gun | -7/Zion | Free Hvy. Riot Gun | -7/Zion | Free Barrage Gun | -7/Zion | Free Enh. Flamer | -7/Zion | Free Mak. Hacking Suite | -6/Factory | Scanalyzed Adv. Concussive RPG | -6/Factory | Hacked Remote Force Field | -6/Factory | Hacked Combat Drone Bay | -6/Data Miner | Free Lgt. Regenerative Plating | -6/Data Miner | Free Cld. Nuclear Pulse Thruster | -6/Data Miner | Free Adv. EM Disruption Field | -6/Data Miner | Free Ionic Axe | -6/Data Miner | Free Field Propulsion Array | -6/Data Miner | Free Graphene Brace | -6/Data Miner | Free Hvy. Disruptor Cannon | -6/Data Miner | Free Antigrav System | -5/Factory | Hacked Robot Schematics ------------------ L-41 Fighter | -6/Data Miner | Free A-15 Conveyor | -6/Data Miner | Free E-15 Imp | -6/Data Miner | Free G-50 Soldier | -6/Data Miner | Free W-44 Eye | -6/Data Miner | Free Fabricated ------------ Combat Drone Bay | x1 | -5/Factory | Authchip Combat Drone Bay | x1 | -5/Factory | Authchip Combat Drone Bay | x1 | -5/Factory | Authchip Combat Drone Bay | x1 | -5/Factory | Authchip Repaired ---------- Xenon Bombardment Thruster | 46% | -5/Factory KE Penetrator | 8% | -4/Factory Autogun | 16% | -4/Factory Studied --------- Beam Rifle | -9/Materials | Hacked Xenon Bombardment Thruster | -6/Factory | Hacked Alien Tech Used ----------------- Core Expander Achievements -------------- Express Service Follow The Leader Hackathon The Robot, The Myth, The Legend Challenges ------------ None Game ------ Seed CorruptionPoweredSink Manual? 0 Play Time 05:45:20 Cumulative 299.2 hours Start 2026.09.17 @ 16:50:55 End 2026.09.18 @ 00:48:21 Sessions 5 Manual Loads 0 Difficulty Rogue Special Mode None Game No. 137 Rogue 137 Adventurer 0 Explorer 0 Win Type - Total 3 Types 3/0/0/0/0/0/0/0/0/0 Lore% 56 Gallery% 61 Achievement% 49 Wizard Run 0 Options --------- Layout 2 ASCII 0 Keyboard 0 Movement Mouse Keybinds 1 Fullscreen 1 Font 32/Terminus Map View 50x44 Zoom Use 0% Tactical HUD 1 Map Filters NONE Filters NONE Steam 1 RUN: 5f51347a-246b-4cb2-a7a1-c09787eacf5b